bitfinex/quotes_SOLUSD_20241209
["timestamp","ask_amount","ask_price","bid_price","bid_amount"]
[1733759649427,15.40242826,223.46,223.37,11.31759]
[1733759649628,23.776884,223.45,223.37,11.31759]
[1733759649846,23.776884,223.45,223.41,14.56333104]
[1733759650051,23.776884,223.46,223.43,14.56333104]
[1733759650239,23.776884,223.48,223.43,14.56333104]
[1733759650426,23.776884,223.46,223.43,14.56333104]
[1733759650954,24.61599739,223.48,223.43,14.56333104]
[1733759652364,23.776884,223.48,223.43,14.56333104]
[1733759652541,23.776884,223.48,223.44,14.56333104]
[1733759653266,14.56333104,223.54,223.47,14.56333104]
[1733759653442,14.56333104,223.55,223.48,14.56333104]
[1733759653756,14.56333104,223.57,223.51,14.56333104]
[1733759654058,15.40211585,223.57,223.51,14.56333104]
[1733759654227,15.40210127,223.56,223.49,14.56333104]
[1733759654623,14.56333104,223.56,223.49,14.56333104]
[1733759655162,23.776884,223.56,223.5,14.56333104]
[1733759655329,14.56333104,223.59,223.53,14.56333104]
[1733759655529,14.56333104,223.55,223.45,0.12549]
[1733759655753,14.56333104,223.55,223.48,14.56333104]
[1733759656330,14.56333104,223.53,223.47,14.56333104]
[1733759656637,14.56333104,223.53,223.46,25.75093104]
[1733759656838,23.776884,223.52,223.5,14.56333104]
[1733759657170,23.776884,223.52,223.49,14.56333104]
[1733759657671,23.776884,223.54,223.46,0.25098]
[1733759657968,38.34021504,223.55,223.46,0.25098]
[1733759658147,23.776884,223.53,223.48,14.56333104]
[1733759658656,23.776884,223.54,223.49,14.56333104]
[1733759658956,23.776884,223.56,223.5,14.56333104]
[1733759659155,38.34021504,223.56,223.49,14.68882104]
[1733759659342,23.776884,223.56,223.51,14.56333104]
[1733759659738,23.776884,223.59,223.53,14.56333104]
[1733759659939,14.56333104,223.6,223.54,14.56333104]
[1733759660153,14.56333104,223.6,223.53,14.56333104]
[1733759660546,14.56333104,223.6,223.54,14.56333104]
[1733759660728,14.56333104,223.61,223.54,14.56333104]
[1733759660936,14.56333104,223.64,223.57,14.56333104]
[1733759661335,14.56333104,223.65,223.58,14.56333104]
[1733759661760,14.56333104,223.67,223.6,14.56333104]
[1733759661960,15.40173384,223.66,223.59,14.56333104]
[1733759662157,14.56333104,223.65,223.58,14.56333104]
[1733759662339,14.56333104,223.65,223.59,0.12549]
[1733759662770,14.56333104,223.66,223.59,14.68882104]
[1733759664036,14.56333104,223.67,223.6,14.56333104]
[1733759664573,14.56333104,223.69,223.62,14.56333104]
[1733759664768,0.83830979,223.71,223.63,14.56333104]
[1733759664955,15.40162258,223.73,223.66,14.56333104]
[1733759665271,14.56333104,223.74,223.68,0.12549]
[1733759665840,14.56333104,223.73,223.67,0.12549]
[1733759666265,14.56333104,223.74,223.67,14.68882104]
[1733759666565,14.56333104,223.73,223.67,0.12549]
[1733759666766,23.776884,223.72,223.67,0.12549]
[1733759667262,23.776884,223.74,223.68,14.56333104]
[1733759667441,0.83806359,223.78,223.7,0.12549]
[1733759667639,14.56333104,223.76,223.7,0.12549]
[1733759667843,14.56333104,223.79,223.72,14.68882104]
[1733759668064,0.83800917,223.83,223.75,14.56333104]
[1733759668263,0.83787252,223.88,223.77,14.56333104]
[1733759668471,14.56333104,223.85,223.78,14.56333104]
[1733759668869,14.56333104,223.83,223.77,14.56333104]
[1733759669167,14.56333104,223.86,223.8,0.12549]
[1733759669473,0.83777323,223.89,223.83,14.56333104]
[1733759669644,0.83752068,223.89,223.83,14.56333104]
[1733759670264,0.83752068,223.89,223.8,0.12549]
[1733759670265,0.83755534,223.95,223.86,14.56333104]
[1733759670476,14.56333104,223.93,223.86,14.56333104]
[1733759670671,0.83746104,223.92,223.87,0.12549]
[1733759670888,14.56333104,223.95,223.88,14.56333104]
[1733759671272,14.56333104,223.95,223.83,1.79870894]
[1733759671273,14.56333104,223.96,223.9,14.56333104]
[1733759671491,14.56333104,223.97,223.9,14.56333104]
[1733759671696,0.83730415,223.96,223.9,14.56333104]
[1733759671991,14.56333104,223.98,223.91,14.56333104]
[1733759672188,0.83725197,223.97,223.92,14.56333104]
[1733759672402,14.56333104,223.95,223.89,14.56333104]
[1733759672562,14.56333104,223.9,223.84,14.56333104]
[1733759672894,15.40082842,223.89,223.82,14.56333104]
[1733759673199,23.776884,223.89,223.83,14.56333104]
[1733759673367,38.34021504,223.87,223.76,4.112]
[1733759673566,38.34021504,223.81,223.74,14.56333104]
[1733759673784,38.34021504,223.79,223.72,21.09773104]
[1733759674175,15.4012789,223.78,223.72,6.5344]
[1733759674395,38.34021504,223.77,223.72,6.5344]
[1733759674776,23.776884,223.75,223.72,6.5344]
[1733759675000,23.776884,223.73,223.72,6.5344]
[1733759675372,23.776884,223.76,223.72,6.5344]
[1733759675701,23.776884,223.77,223.72,6.5344]
[1733759675860,39.17821585,223.77,223.72,6.5344]
[1733759676061,24.61488481,223.77,223.74,14.56333104]
[1733759676294,14.56333104,223.83,223.75,14.56333104]
[1733759676592,14.56333104,223.83,223.72,6.5344]
[1733759676593,14.56333104,223.79,223.72,21.09773104]
[1733759676792,0.8379832,223.78,223.74,0.12549]
[1733759677000,9.4669,223.87,223.74,0.12549]
[1733759677001,0.8379005,223.8,223.74,0.12549]
[1733759677297,23.22519364,223.83,223.76,23.22519364]
[1733759677479,0.83782741,223.83,223.76,23.22519364]
[1733759678174,23.22519364,223.82,223.74,23.22519364]
[1733759678383,23.22519364,223.8,223.73,23.35068364]
[1733759678569,23.776884,223.78,223.73,23.22519364]
[1733759678903,23.776884,223.76,223.72,6.5344]
[1733759679075,23.776884,223.74,223.72,6.5344]
[1733759679771,23.776884,223.78,223.72,6.5344]
[1733759680099,23.776884,223.76,223.72,6.5344]
[1733759680467,23.776884,223.74,223.67,23.22519364]
[1733759680794,23.776884,223.74,223.7,23.22519364]
[1733759680995,23.776884,223.76,223.72,23.22519364]
[1733759681303,23.776884,223.79,223.72,23.22519364]
[1733759681481,23.776884,223.79,223.73,23.22519364]
[1733759681680,23.776884,223.8,223.74,23.22519364]
[1733759681901,47.83997712,223.8,223.73,23.22519364]
[1733759682196,23.22519364,223.81,223.74,0.12549]
[1733759682402,24.06308631,223.8,223.72,23.22519364]
[1733759682770,24.06308631,223.8,223.73,23.35068364]
[1733759683503,23.776884,223.79,223.73,0.12549]
[1733759683804,47.00207764,223.79,223.73,0.12549]
[1733759684388,23.776884,223.79,223.73,0.12549]
[1733759684591,47.84000565,223.79,223.73,0.12549]
[1733759685484,23.776884,223.79,223.73,0.12549]
[1733759685693,24.6147957,223.79,223.73,0.12549]
[1733759685901,23.776884,223.79,223.74,23.22519364]
[1733759686607,23.776884,223.83,223.77,23.22519364]
[1733759686909,0.83780379,223.83,223.77,23.22519364]
[1733759687407,0.83780588,223.83,223.78,23.22519364]
[1733759687604,0.83777944,223.84,223.78,23.22519364]
[1733759687920,23.22519364,223.87,223.8,23.22519364]
[1733759688091,0.83770959,223.86,223.8,23.22519364]
[1733759688401,24.06288317,223.87,223.8,23.22519364]
[1733759688607,23.22519364,223.89,223.82,23.35068364]
[1733759688803,23.22519364,223.91,223.83,23.22519364]
[1733759689004,0.83758431,223.93,223.87,23.22519364]
[1733759689212,0.83758431,223.93,223.79,0.58059662]
[1733759689213,0.83758431,223.93,223.88,23.22519364]
[1733759690021,0.83740689,223.94,223.88,23.22519364]
[1733759690313,23.22519364,223.96,223.89,23.35068364]
[1733759690486,0.83732913,223.95,223.89,23.35068364]
[1733759690813,23.22519364,223.96,223.89,23.35068364]
[1733759691104,23.22519364,223.97,223.9,23.22519364]
[1733759691307,23.22519364,223.97,223.91,0.25098]
[1733759691515,0.83729194,224.0,223.92,23.35068364]
[1733759691516,23.22519364,223.99,223.92,23.35068364]
[1733759691900,0.83729194,224.0,223.92,23.35068364]
[1733759692206,23.22519364,224.0,223.93,23.22519364]
[1733759692408,0.83719144,223.99,223.94,23.22519364]
[1733759692709,23.22519364,224.02,223.95,23.22519364]
[1733759693116,23.22519364,224.04,223.97,23.47617364]
[1733759693327,24.06231342,224.05,223.99,0.12549]
[1733759693537,23.75154874,224.06,223.99,23.35068364]
[1733759693832,0.83695677,224.05,224.0,23.22519364]
[1733759694141,1.36330981,224.06,224.0,23.22519364]
[1733759694298,5.0,224.01,223.94,0.57924643]
[1733759694492,5.0,223.96,223.74,6.5861]
[1733759694818,23.22519364,223.83,223.75,23.22519364]
[1733759695194,0.83778677,223.9,223.77,23.22519364]
[1733759695195,23.22519364,223.85,223.77,23.22519364]
[1733759695434,23.22519364,223.86,223.79,23.22519364]
[1733759695602,23.776884,223.85,223.8,0.12549]
[1733759695927,23.776884,223.85,223.79,23.22519364]
[1733759696298,23.776884,223.85,223.8,0.12549]
[1733759696741,23.776884,223.85,223.79,23.22519364]
[1733759698008,23.776884,223.85,223.8,23.35068364]
[1733759698312,23.776884,223.87,223.81,0.12549]
[1733759698833,23.22519364,223.86,223.78,23.22519364]
[1733759699128,23.22519364,223.86,223.58,3.24]
[1733759699129,23.776884,223.78,223.66,23.22519364]
[1733759699320,23.22519364,223.73,223.66,23.22519364]
[1733759699492,23.22519364,223.73,223.67,0.12549]
[1733759700199,23.22519364,223.72,223.67,0.12549]
[1733759700432,23.22519364,223.73,223.67,0.25098]
[1733759700635,23.22519364,223.73,223.66,23.22519364]
[1733759700931,0.83809691,223.77,223.65,23.22519364]
[1733759700932,23.22519364,223.72,223.65,23.22519364]
[1733759701100,23.776884,223.73,223.68,0.12549]
[1733759701721,23.776884,223.73,223.67,0.12549]
[1733759701930,23.22519364,223.69,223.62,23.22519364]
[1733759702104,23.22519364,223.67,223.6,33.78759364]
[1733759702305,23.22519364,223.68,223.61,23.22519364]
[1733759703406,23.22519364,223.69,223.63,0.12549]
[1733759703721,23.776884,223.68,223.63,23.35068364]
[1733759704024,23.22519364,223.73,223.65,23.35068364]
[1733759704236,23.22519364,223.75,223.68,23.22519364]
[1733759704580,23.22519364,223.7,223.63,23.22519364]
[1733759704701,9.4683,223.8,223.6,10.5624]
[1733759704702,0.83832563,223.69,223.6,10.5624]
[1733759705028,5.83841227,223.78,223.6,10.5624]
[1733759705231,23.22519364,223.67,223.6,33.78759364]
[1733759705425,23.776884,223.65,223.6,10.5624]
[1733759705800,0.83841611,223.73,223.62,0.12549]
[1733759705801,23.776884,223.67,223.62,0.12549]
[1733759706022,23.22519364,223.64,223.54,0.58203702]
[1733759706214,23.22519364,223.57,223.5,23.22519364]
[1733759706501,0.83828196,223.63,223.43,21.6554]
[1733759706502,47.00207764,223.56,223.49,23.22519364]
[1733759706705,47.00207764,223.56,223.5,0.12549]
[1733759707509,46.41196571,223.56,223.44,0.12549]
[1733759707718,46.39169671,223.56,223.44,0.25098]
[1733759707942,23.22519364,223.53,223.49,0.12549]
[1733759708228,23.22519364,223.52,223.45,23.22519364]
[1733759708454,23.22519364,223.47,223.43,10.4663]
[1733759708626,24.61579365,223.51,223.43,10.4663]
[1733759708627,23.22519364,223.49,223.43,10.4663]
[1733759709019,23.22519364,223.47,223.43,10.4663]
[1733759709527,23.776884,223.49,223.43,10.4663]
[1733759709528,23.22519364,223.48,223.43,10.4663]
[1733759709734,23.776884,223.46,223.43,10.4663]
[1733759709925,23.22519364,223.47,223.43,6.5234]
[1733759710328,23.22519364,223.45,223.43,6.5234]
[1733759710531,23.22519364,223.46,223.43,6.5234]
[1733759710823,47.00207764,223.47,223.43,6.5234]
[1733759711234,23.22519364,223.5,223.44,0.12549]
[1733759711442,23.22519364,223.51,223.44,23.35068364]
[1733759711813,23.22519364,223.5,223.44,0.25098]
[1733759712244,23.22519364,223.48,223.44,0.25098]
[1733759712419,0.83896197,223.57,223.44,0.25098]
[1733759712420,23.22519364,223.49,223.44,0.25098]
[1733759712819,23.22519364,223.48,223.44,0.25098]
[1733759713318,23.22519364,223.49,223.44,0.25098]
[1733759714716,47.00207764,223.48,223.43,6.5234]
[1733759714915,23.22519364,223.49,223.43,6.5234]
[1733759715446,23.22519364,223.46,223.43,0.12549]
[1733759715651,23.22519364,223.47,223.4,23.22519364]
[1733759715941,23.22519364,223.48,223.41,23.22519364]
[1733759716141,23.22519364,223.5,223.43,23.22519364]
[1733759716327,23.776884,223.5,223.45,0.12549]
[1733759716521,23.22519364,223.53,223.46,23.22519364]
[1733759716728,23.776884,223.51,223.45,23.35068364]
[1733759717435,23.22519364,223.5,223.45,0.12549]
[1733759717836,23.22519364,223.51,223.45,0.12549]
[1733759718657,4.98227446,223.59,223.44,0.25098]
[1733759718952,23.22519364,223.48,223.44,0.12549]
[1733759719833,23.22519364,223.5,223.44,0.12549]
[1733759720033,23.22519364,223.5,223.44,0.25098]
[1733759720642,23.22519364,223.48,223.42,0.25098]
[1733759721030,23.22519364,223.5,223.44,0.25098]
[1733759721455,23.22519364,223.49,223.44,0.25098]
[1733759721844,23.22519364,223.48,223.42,0.25098]
[1733759722049,23.22519364,223.49,223.42,23.47617364]
[1733759723058,23.22519364,223.5,223.44,0.25098]
[1733759723259,23.22519364,223.52,223.45,23.22519364]
[1733759723469,11.77926815,223.64,223.45,23.22519364]
[1733759723470,24.06405347,223.57,223.5,23.35068364]
[1733759723956,23.22519364,223.56,223.5,0.25098]
[1733759724167,23.22519364,223.6,223.54,0.12549]
[1733759724334,23.22519364,223.59,223.54,0.12549]
[1733759724531,23.22519364,223.58,223.54,0.12549]
[1733759724956,23.22519364,223.58,223.53,0.12549]
[1733759724957,23.22519364,223.55,223.52,0.12549]
[1733759725153,23.22519364,223.53,223.46,23.22519364]
[1733759725439,23.22519364,223.49,223.44,3.935]
[1733759725763,23.22519364,223.48,223.44,3.935]
[1733759725972,23.22519364,223.49,223.44,3.935]
[1733759726260,23.22519364,223.5,223.44,3.935]
[1733759726467,23.22519364,223.49,223.46,0.12549]
[1733759726632,23.22519364,223.48,223.46,0.12549]
[1733759726957,23.22519364,223.49,223.46,0.12549]
[1733759727138,23.22519364,223.5,223.46,0.12549]
[1733759727540,23.22519364,223.48,223.46,0.12549]
[1733759727764,23.22519364,223.49,223.46,0.12549]
[1733759728271,23.22519364,223.5,223.46,0.12549]
[1733759728428,0.83898843,223.56,223.48,0.12549]
[1733759728429,23.22519364,223.54,223.48,0.12549]
[1733759728633,23.22519364,223.56,223.49,23.47617364]
[1733759728875,23.22519364,223.58,223.51,23.35068364]
[1733759729070,23.22519364,223.6,223.54,0.12549]
[1733759729234,0.83854853,223.69,223.54,0.25098]
[1733759729436,23.22519364,223.62,223.56,0.25098]
[1733759729637,0.83854853,223.69,223.56,23.47617364]
[1733759729638,23.22519364,223.63,223.56,23.47617364]
[1733759729870,23.22519364,223.62,223.56,0.25098]
[1733759730079,23.22519364,223.64,223.58,0.12549]
[1733759730363,23.22519364,223.64,223.58,0.25098]
[1733759731169,23.22519364,223.66,223.6,0.12549]
[1733759731371,23.22519364,223.66,223.6,0.25098]
[1733759731537,23.22519364,223.68,223.62,0.12549]
[1733759731864,23.22519364,223.68,223.62,0.25098]
[1733759732081,23.22519364,223.69,223.62,0.25098]
[1733759732387,23.22519364,223.7,223.64,0.12549]
[1733759732562,23.22519364,223.75,223.68,23.22519364]
[1733759732751,23.22519364,223.76,223.7,0.12549]
[1733759733135,23.22519364,223.76,223.7,23.35068364]
[1733759733539,23.22519364,223.76,223.7,0.12549]
[1733759734238,23.22519364,223.75,223.7,0.12549]
[1733759734456,23.22519364,223.71,223.64,0.12549]
[1733759734660,23.22519364,223.67,223.63,6.1532]
[1733759734838,23.22519364,223.65,223.63,6.1532]
[1733759735158,47.00207764,223.74,223.63,6.1532]
[1733759735159,23.22519364,223.64,223.63,6.1532]
[1733759736541,23.22519364,223.64,223.63,6.27869]
[1733759736856,23.22519364,223.64,223.58,0.12549]
[1733759737040,51.47157764,223.74,223.57,6.4658]
[1733759737041,23.22519364,223.61,223.57,6.4658]
[1733759737568,23.22519364,223.6,223.58,0.12549]
[1733759737750,23.22519364,223.6,223.57,6.4658]
[1733759738268,23.22519364,223.61,223.58,0.12549]
[1733759739246,0.83856654,223.67,223.58,0.12549]
[1733759739462,23.22519364,223.64,223.58,0.12549]
[1733759739676,23.776884,223.63,223.58,0.12549]
[1733759740048,47.00207764,223.63,223.58,0.12549]
[1733759741080,23.22519364,223.66,223.6,0.12549]
[1733759741286,23.776884,223.67,223.61,0.12549]
[1733759741450,24.6152618,223.67,223.61,0.12549]
[1733759741782,23.776884,223.67,223.62,0.12549]
[1733759741950,23.22519364,223.68,223.62,0.12549]
[1733759742473,23.22519364,223.67,223.61,0.25098]
[1733759743050,23.22519364,223.65,223.57,29.69099364]
[1733759743248,23.22519364,223.65,223.58,23.35068364]
[1733759743555,0.8384296,223.7,223.58,23.35068364]
[1733759743556,23.22519364,223.66,223.6,0.12549]
[1733759744281,23.22519364,223.64,223.58,0.25098]
[1733759744496,23.22519364,223.66,223.6,0.12549]
[1733759745352,23.776884,223.69,223.64,0.12549]
[1733759745654,24.61516618,223.69,223.64,0.12549]
[1733759745849,23.776884,223.69,223.64,0.12549]
[1733759746050,23.22519364,223.73,223.67,0.12549]
[1733759746685,23.22519364,223.74,223.67,23.35068364]
[1733759746854,23.22519364,223.75,223.69,0.12549]
[1733759747179,0.83811709,223.74,223.69,0.12549]
[1733759747383,23.22519364,223.75,223.69,0.12549]
[1733759747554,23.22519364,223.71,223.69,0.12549]
[1733759747902,0.83810747,223.74,223.62,6.90959]
[1733759747903,24.06336139,223.7,223.62,6.90959]
[1733759748049,24.06336139,223.7,223.62,6.7841]
[1733759748050,23.22519364,223.66,223.62,6.7841]
[1733759748251,23.22519364,223.67,223.62,6.7841]
[1733759748455,23.22519364,223.67,223.63,0.12549]
[1733759749451,0.83841184,223.73,223.63,0.12549]
[1733759749452,0.83841184,223.73,223.67,0.12549]
[1733759749676,0.83814767,223.77,223.71,0.12549]
[1733759750063,24.06334131,223.77,223.71,0.12549]
[1733759750272,23.22519364,223.76,223.69,23.22519364]
[1733759750484,0.83810773,223.75,223.69,23.22519364]
[1733759750778,0.83810773,223.75,223.7,0.12549]
[1733759751094,23.22519364,223.78,223.7,23.47617364]
[1733759751382,0.83798382,223.77,223.72,0.12549]
[1733759751591,23.22519364,223.78,223.72,0.12549]
[1733759751876,0.83798285,223.77,223.71,0.25098]
[1733759752090,23.22519364,223.77,223.71,0.25098]
[1733759752283,23.22519364,223.78,223.71,0.25098]
[1733759752491,23.776884,223.77,223.71,0.25098]
[1733759752782,24.61487122,223.77,223.71,0.25098]
[1733759753078,23.776884,223.77,223.71,0.25098]
[1733759753282,24.61486525,223.77,223.71,0.25098]
[1733759753484,23.776884,223.77,223.71,0.25098]
[1733759753870,23.776884,223.77,223.72,0.12549]
[1733759754257,23.776884,223.78,223.72,23.35068364]
[1733759754492,23.22519364,223.8,223.74,0.12549]
[1733759754893,23.22519364,223.79,223.74,0.12549]
[1733759755083,0.83800142,223.84,223.74,0.12549]
[1733759755084,23.22519364,223.8,223.74,0.12549]
[1733759755388,0.83800142,223.84,223.74,0.12549]
[1733759755389,23.22519364,223.81,223.74,23.47617364]
[1733759755597,23.22519364,223.8,223.74,0.25098]
[1733759755761,23.22519364,223.81,223.74,23.47617364]
[1733759756384,23.22519364,223.82,223.76,0.12549]
[1733759757296,23.776884,223.81,223.76,0.12549]
[1733759757463,23.776884,223.82,223.77,0.12549]
[1733759757662,23.776884,223.82,223.77,23.35068364]
[1733759757862,4.4664,223.89,223.77,0.12549]
[1733759757863,47.83984248,223.83,223.77,0.12549]
[1733759758172,23.22519364,223.8,223.76,0.12549]
[1733759758363,23.22519364,223.81,223.76,0.12549]
[1733759758567,23.22519364,223.81,223.75,0.12549]
[1733759759666,24.61464884,223.83,223.74,0.25098]
[1733759759667,23.22519364,223.8,223.74,0.25098]
[1733759760199,23.776884,223.81,223.76,0.12549]
[1733759760795,23.22519364,223.8,223.76,0.12549]
[1733759761005,23.22519364,223.79,223.75,0.12549]
[1733759761208,47.83998477,223.78,223.73,6.6167]
[1733759761510,23.22519364,223.76,223.73,6.6167]
[1733759761799,23.22519364,223.76,223.74,0.12549]
[1733759762007,23.22519364,223.76,223.73,6.6167]
[1733759762304,23.776884,223.76,223.74,0.12549]
[1733759763506,23.776884,223.76,223.68,5.69351348]
[1733759763507,23.776884,223.74,223.68,10.2547]
[1733759763803,23.22519364,223.71,223.68,10.2547]
[1733759764112,47.00207764,223.69,223.63,6.557]
[1733759764320,23.22519364,223.64,223.63,6.557]
[1733759764812,23.776884,223.63,223.57,10.741]
[1733759764975,24.06377565,223.62,223.57,10.741]
[1733759765174,23.22519364,223.61,223.57,6.7981]
[1733759765376,23.776884,223.57,223.52,6.561]
[1733759765689,23.776884,223.55,223.52,6.561]
[1733759765889,0.83876206,223.62,223.53,0.12549]
[1733759766090,23.776884,223.61,223.53,0.12549]
[1733759766877,23.776884,223.61,223.53,23.47617364]
[1733759767081,23.776884,223.61,223.56,0.12549]
[1733759767385,23.22519364,223.6,223.56,0.12549]
[1733759767586,23.22519364,223.6,223.53,0.12549]
[1733759767587,23.776884,223.57,223.53,0.12549]
[1733759767992,23.776884,223.58,223.53,0.25098]
[1733759768197,23.22519364,223.56,223.52,6.561]
[1733759768408,47.00207764,223.54,223.52,6.561]
[1733759768575,47.84095497,223.53,223.47,6.717]
[1733759768906,23.22519364,223.5,223.47,6.717]
[1733759769114,23.22519364,223.53,223.48,0.12549]
[1733759769284,23.22519364,223.54,223.48,0.12549]
[1733759769485,0.83899226,223.6,223.48,0.12549]
[1733759769486,23.22519364,223.55,223.48,23.35068364]
[1733759769695,23.776884,223.53,223.48,23.35068364]
[1733759770482,23.776884,223.53,223.48,0.12549]
[1733759770995,23.776884,223.56,223.51,0.12549]
[1733759771210,24.61564633,223.56,223.51,0.12549]
[1733759771399,23.776884,223.56,223.51,0.12549]
[1733759771716,23.22519364,223.6,223.54,0.12549]
[1733759771890,0.83867997,223.59,223.54,0.12549]
[1733759772086,23.22519364,223.62,223.56,0.12549]
[1733759772412,23.22519364,223.6,223.55,0.12549]
[1733759772913,23.22519364,223.59,223.54,0.12549]
[1733759773082,4.4711,223.66,223.54,0.12549]
[1733759773083,23.22519364,223.56,223.54,0.12549]
[1733759773881,23.22519364,223.57,223.51,0.12549]
[1733759774092,23.776884,223.58,223.53,0.12549]
[1733759774713,23.776884,223.58,223.54,0.12549]
[1733759774919,23.776884,223.59,223.54,23.35068364]
[1733759776192,23.22519364,223.58,223.54,0.12549]
[1733759776404,23.776884,223.56,223.54,0.12549]
[1733759776911,47.84084213,223.56,223.49,23.22519364]
[1733759777121,47.84084213,223.56,223.47,6.717]
[1733759777122,23.776884,223.54,223.48,23.22519364]
[1733759777615,23.22519364,223.57,223.51,23.35068364]
[1733759777804,23.776884,223.59,223.54,0.12549]
[1733759778008,23.22519364,223.58,223.54,0.12549]
[1733759778207,47.00207764,223.57,223.5,23.22519364]
[1733759778509,47.00207764,223.57,223.51,0.25098]
[1733759778701,47.00207764,223.57,223.51,0.12549]
[1733759779216,23.776884,223.57,223.52,0.12549]
[1733759779389,24.61562304,223.57,223.52,0.12549]
[1733759779817,47.84081668,223.57,223.52,0.12549]
[1733759780912,23.776884,223.57,223.52,0.12549]
[1733759781097,24.61561285,223.57,223.52,0.12549]
[1733759781791,24.61564532,223.57,223.52,0.12549]
[1733759782316,23.22519364,223.6,223.53,23.35068364]
[1733759782617,23.776884,223.59,223.53,23.35068364]
[1733759782800,24.61555268,223.59,223.53,23.35068364]
[1733759782997,23.776884,223.59,223.53,23.35068364]
[1733759783393,47.84074921,223.59,223.53,0.12549]
[1733759784199,24.61555557,223.59,223.54,0.12549]
[1733759784522,23.776884,223.59,223.56,0.12549]
[1733759784721,23.776884,223.61,223.56,0.12549]
[1733759785199,47.84066928,223.61,223.55,0.12549]
[1733759785525,47.00207764,223.61,223.55,0.12549]
[1733759785814,23.776884,223.61,223.55,23.35068364]
[1733759786020,5.30941752,223.68,223.57,23.35068364]
[1733759786021,23.22519364,223.64,223.57,23.35068364]
[1733759786191,23.22519364,223.66,223.6,0.12549]
[1733759786802,0.83842958,223.65,223.6,0.12549]
[1733759787011,23.22519364,223.66,223.6,0.12549]
[1733759788018,23.22519364,223.68,223.61,23.22519364]
[1733759788236,23.22519364,223.68,223.62,0.12549]
[1733759788594,0.83837036,223.73,223.68,0.12549]
[1733759788930,23.22519364,223.75,223.68,23.35068364]
[1733759789224,23.22519364,223.76,223.7,0.12549]
[1733759789522,24.0633008,223.75,223.7,0.12549]
[1733759790126,23.22519364,223.77,223.71,0.12549]
[1733759790314,0.83810186,223.79,223.72,23.35068364]
[1733759790315,24.0632955,223.79,223.72,23.35068364]
[1733759790896,5.0,223.9,223.69,0.12549]
[1733759790897,23.22519364,223.82,223.76,0.12549]
[1733759791124,23.22519364,223.83,223.77,0.12549]
[1733759791624,24.06298062,223.82,223.76,0.12549]
[1733759791827,23.22519364,223.77,223.71,23.22519364]
[1733759792031,23.22519364,223.77,223.68,5.74641816]
[1733759792032,23.22519364,223.75,223.68,3.9713]
[1733759792207,47.84018829,223.74,223.68,3.9713]
[1733759792396,47.84018829,223.74,223.69,0.12549]
[1733759792595,23.776884,223.74,223.69,0.12549]
[1733759792836,24.61498457,223.74,223.69,0.12549]
[1733759793198,23.22519364,223.72,223.69,0.12549]
[1733759793393,47.00207764,223.7,223.67,6.6553]
[1733759793697,47.00207764,223.68,223.67,6.6553]
[1733759793922,47.00207764,223.68,223.63,0.12549]
[1733759794112,23.776884,223.68,223.63,0.12549]
[1733759794403,24.61520945,223.68,223.62,33.40829364]
[1733759794605,24.61521819,223.68,223.63,0.12549]
[1733759794803,24.61521819,223.68,223.62,33.40829364]
[1733759795100,24.61521819,223.68,223.63,0.12549]
[1733759795408,24.61521819,223.68,223.63,23.35068364]
[1733759795611,23.776884,223.69,223.63,23.35068364]
[1733759795806,24.61522151,223.69,223.63,23.35068364]
[1733759796829,23.22519364,223.68,223.62,10.1831]
[1733759796994,23.776884,223.64,223.62,6.2119]
[1733759797424,24.61535133,223.64,223.62,6.2119]
[1733759797600,47.84054497,223.64,223.62,6.2119]
[1733759797806,23.776884,223.62,223.57,6.1302]
[1733759798007,23.776884,223.6,223.57,6.1302]
[1733759798438,23.776884,223.62,223.57,6.1302]
[1733759799050,23.776884,223.62,223.6,23.22519364]
[1733759799344,23.776884,223.62,223.58,0.12549]
[1733759799345,23.22519364,223.7,223.62,0.12549]
[1733759799520,23.776884,223.68,223.62,23.35068364]
[1733759800012,24.06353027,223.69,223.62,23.35068364]
[1733759800210,0.83838946,223.68,223.62,23.35068364]
[1733759800441,23.22519364,223.7,223.62,23.35068364]
[1733759800629,0.83831303,223.69,223.63,23.22519364]
[1733759800822,23.22519364,223.71,223.64,0.12549]
[1733759801031,0.83826437,223.7,223.64,0.12549]
[1733759801333,24.06347408,223.7,223.64,0.12549]
[1733759801534,23.22519364,223.72,223.65,23.35068364]
[1733759801845,23.22519364,223.76,223.69,23.22519364]
[1733759802014,23.22519364,223.77,223.7,23.22519364]
[1733759802511,0.83802803,223.76,223.7,0.12549]